Cogmind - Beta 15 @@@ ROGUE MODE // 2025.07.20 @ 21:05:32 Player: Chicken Result: Destroyed by D-53 Grenadier with Mini Grenade Launcher Performance ------------- Evolutions (0) 0 Regions Visited (2) 400 Robots Destroyed (15) 75 Value Destroyed (302) 302 Prototype IDs (0) 0 Alien Tech Used (0) 0 Bonus (0) 0 TOTAL SCORE: 777 Bonus ------- None Cogmind --------- Core Integrity 0/250 Matter 152/300 Energy 68/100 System Corruption 0% Temperature Cool (0) Movement Walking (120) Location -10/Mines Parts ------- > --- POWER (1) -------- (None) > --- PROPULSION (2) --- Improved Aluminum Leg Improved Aluminum Leg > --- UTILITY (2) ------ Small Storage Unit Weight Redist. System > --- WEAPON (2) ------- Autogun Grenade Launcher > --- INVENTORY (8) ---- Heat Sink Medium Laser Light EM Pulse Cannon Assault Rifle Autogun Mini Grenade Launcher Mini Grenade Launcher Mini Grenade Launcher Peak State ------------ > --- POWER ------------ Light Ion Engine > --- PROPULSION ------- Improved Aluminum Leg Improved Aluminum Leg > --- UTILITY ---------- Small Storage Unit Weight Redist. System > --- WEAPON ----------- Autogun Autogun > --- INVENTORY -------- Heat Sink Medium Laser Light EM Pulse Cannon Assault Rifle Grenade Launcher Mini Grenade Launcher Mini Grenade Launcher Mini Grenade Launcher [Rating: 13] Favorites ----------- Power Ion Engine Engine Ion Engine Propulsion Wheel Leg Improved Aluminum Leg Wheel Wheel Flight Unit Flight Unit Utility Small Storage Unit Device Heat Sink Storage Small Storage Unit Weapon Assault Rifle Energy Gun Medium Laser Ballistic Gun Assault Rifle Launcher Mini Grenade Launcher Build | -11 -10 -10 ------- Run | Yrd Mat Min Slots Evolved . | . . . Power . | . . . Propulsion . | . . . Utility . | . . . Weapon . | . . . Parts Attached 19 | 6 12 1 Power 2 | 2 . . Engine 2 | 2 . . Core . | . . . Reactor . | . . . Propulsion 6 | 2 4 . Treads . | . . . Leg 2 | . 2 . Wheel 2 | 2 . . Hover . | . . . Flight 2 | . 2 . Utility 3 | . 3 . Device 2 | . 2 . Storage 1 | . 1 . Processor . | . . . Hackware . | . . . Protection . | . . . Artifact . | . . . Weapon 8 | 2 5 1 Energy Gun 2 | 1 1 . Energy Cannon . | . . . Ballistic Gun 3 | 1 2 . Ballistic Cannon . | . . . Launcher 3 | . 2 1 Special Weapon . | . . . Impact Weapon . | . . . Slashing Weapon . | . . . Piercing Weapon . | . . . Special Melee Weapon . | . . . Unidentified Prototypes . | . . . Parts Lost 4 | . 3 1 Power 2 | . 1 1 Propulsion 2 | . 2 . Utility . | . . . Weapon . | . . . Highest Loss Streak 1 | . 1 1 To Critical Strikes . | . . . Average Backups 4 | 1 5 8 Power . | . . . Propulsion . | . . . Utility . | . . 1 Weapon 2 | . 3 7 Tool/Special . | . . . Unused Backups 5 | . 2 3 Power . | . . . Propulsion . | . . . Utility 1 | . 1 . Weapon 4 | . 1 3 Tool/Special . | . . . Average Slot Usage (%) 83 | . 82 100 Engine 14 | . 14 14 Leg 3 | . 1 28 Wheel 14 | . 14 . Device 11 | . 11 14 Storage 10 | . 10 14 Energy Gun 13 | . 14 . Ballistic Gun 11 | . 10 28 Launcher 3 | . 3 . Peak Build Rating 13 | 5 13 13 Average Rating 6 | 4 6 12 On Entrance 6 | . 5 13 Naked Turns . | . . . Heaviest Build 15 | 8 15 14 Greatest Support 32 | 20 32 32 Greatest Overweight (x) 1 | . 1 . Average Overweight (x) . | . . . Largest Inventory Capacity 8 | 5 8 8 Average Capacity 6 | 5 7 8 Most Carried 8 | 2 8 8 Average Carried 4 | 1 5 8 Final Capacity 8 | 5 8 8 Final Carried 8 | 2 8 8 Class Distribution -------------------- 100% | Mutant Dominant Class ---------------- Mutant | -10/Materials Mutant | -10/Mines Resources | -11 -10 -10 ----------- Run | Yrd Mat Min Matter Collected 411 | 275 136 . Remotely . | . . . Salvage Created 309 | 35 274 . Parts 21 | 4 17 . Haulers Intercepted . | . . . Recyclers Shooed 1 | . 1 . Parts Field Recycled . | . . . Retrieved Matter . | . . . Parts Self-Destructed . | . . . Prevented . | . . . Kills | -11 -10 -10 ------- Run | Yrd Mat Min Combat Hostiles Destroyed 13 | 1 12 . Guns 10 | 1 9 . AOE 3 | . 3 . Classes Destroyed 3 | 1 2 . Watcher 2 | . 2 . Swarmer 8 | . 8 . Grunt 5 | 1 4 . Best Kill Streak 4 | 1 4 . Combat Bots Only 4 | 1 4 . Max Kills in Single Turn 2 | 1 2 . Gunslinging 1 | . 1 . Exploded 2 | . 2 . Melee . | . . . Uniques/NPCs Destroyed . | . . . Combat | -11 -10 -10 -------- Run | Yrd Mat Min Hostile Shots Fired 68 | 6 55 7 Missed 20 | 1 19 . Hits 48 | 5 36 7 Projectile 48 | 5 36 7 AOE 7 | . . 7 Damage Taken 852 | 53 529 270 Core 273 | . 211 62 Absorbed by Shields . | . . . Core Remaining (%) 100 | 100 . . Volleys Fired 37 | 5 31 1 Largest 2 | 2 2 1 Hottest 80 | 60 80 30 Shots Fired 69 | 10 58 1 Gun 63 | 10 53 . Cannon . | . . . Launcher 6 | . 5 1 Special . | . . . Kinetic 28 | 5 23 . Thermal 35 | 5 30 . Explosive 6 | . 5 1 Electromagnetic . | . . . Robot Hit Streak 9 | 3 9 1 Robot Miss Streak 5 | 2 5 . Penetration Max . | . . . Secondary Targets 2 | . 2 . Max Gunslinging Chain 1 | . 1 . Shots Hit Robots 35 | 6 28 1 Core Hits 23 | 2 19 2 Critical Kills . | . . . Critical Parts Destroyed . | . . . Critical Strikes 2 | . 2 . Burn 2 | . 2 . Melee Attacks . | . . . Impact . | . . . Slashing . | . . . Piercing . | . . . Sneak Attacks . | . . . Combat Hostiles . | . . . Follow-up Attacks . | . . . Damage Inflicted 715 | 68 626 21 Guns 431 | 68 363 . Cannons . | . . . Explosions 284 | . 263 21 Melee . | . . . Ramming . | . . . Kinetic 199 | 46 153 . Thermal 232 | 22 210 . Explosive 231 | . 210 21 Electromagnetic 53 | . 53 . Impact . | . . . Slashing . | . . . Piercing . | . . . Highest Corruption . | . . . Average Corruption . | . . . Corruption Purged . | . . . Corruption Blocked . | . . . Overload Shots . | . . . Overflow Damage . | . . . Projectiles . | . . . Explosions . | . . . Melee . | . . . Knockbacks . | . . . Impact . | . . . Kinetic . | . . . Secondary . | . . . Self-Inflicted Damage 198 | . 198 . Shots 6 | . 6 . Rammed . | . . . Targets Rammed . | . . . Kicked . | . . . Crushed . | . . . Highest Temperature 82 | 30 82 . Average Temperature 27 | 19 30 . Received Heat Transfer 114 | 30 84 . Siege Activations . | . . . Martial Activations . | . . . Shielding Activations . | . . . Robots Disrupted . | . . . Combat Hostiles . | . . . Robots Corrupted . | . . . Combat Hostiles . | . . . Parts Fried . | . . . Impact Corruptions . | . . . Robots Melted . | . . . Combat Hostiles . | . . . Parts Melted 2 | . 2 . Heat Transferred 803 | 50 753 . Parts Sabotaged . | . . . Parts Stolen . | . . . Parts Stripped . | . . . Power Chain Reactions 1 | . 1 . Alert | -11 -10 -10 ------- Run | Yrd Mat Min Maximum Alert Level 1 | . 1 . Low Security (%) 91 | 100 85 100 Level 1 8 | . 14 . Level 2 . | . . . Level 3 . | . . . Level 4 . | . . . Level 5 . | . . . High Security . | . . . Max Security . | . . . Peak Influence 240 | 20 240 83 Initial 83 | . . 83 Average 63 | . 100 79 Influence Increases 456 | 20 430 6 Destroy 0b10 Robot/C 260 | 20 240 . Destroy 0b10 Robot/NC 10 | . 10 . Destroy Leader 64 | . 64 . Disable Machine 30 | . 30 . Destroy Structure 47 | . 41 6 Lose Combat Pursuer 45 | . 45 . Influence Decreases 387 | 20 216 151 Entered New Map 131 | . . 131 Time Decay 216 | 20 186 10 Lost Part 40 | . 30 10 Squads Dispatched 3 | . 3 . Investigation 1 | . 1 . Extermination . | . . . Reinforcement 2 | . 2 . Assault . | . . . Garrison . | . . . Intercept . | . . . Searches Triggered . | . . . Construction Impeded . | . . . Haulers Reinforced . | . . . Active Scanning Responses . | . . . Cargo Convoy Interrupts . | . . . Stealth | -11 -10 -10 --------- Run | Yrd Mat Min Distress Signals . | . . . Communications Jammed . | . . . Distress Signals . | . . . Times Spotted 18 | 1 15 2 Peak Tracking Total 5 | 1 5 2 Tactical Retreats 2 | . 2 . Traps | -11 -10 -10 ------- Run | Yrd Mat Min Traps Triggered 1 | . 1 . Indirectly . | . . . Trap Hack Attempts . | . . . Triggered . | . . . Disarmed . | . . . Reprogrammed . | . . . Reused . | . . . Traps Extracted . | . . . Installed . | . . . Triggered . | . . . Machines | -11 -10 -10 ---------- Run | Yrd Mat Min Machines Disabled 2 | . 2 . Max in Single Turn 2 | . 2 . Machines Repaired . | . . . Machines Dismantled . | . . . Machines Sabotaged . | . . . Overloaded Fab Kills . | . . . Hacking | -11 -10 -10 --------- Run | Yrd Mat Min Machines Accessed 2 | . 2 . Terminals 2 | . 2 . Fabricators . | . . . Repair Stations . | . . . Recycling Units . | . . . Scanalyzers . | . . . Garrison Access . | . . . Total Hacks 4 | . 4 . Successful 2 | . 2 . Failed 2 | . 2 . Catastrophic . | . . . Database Lockouts . | . . . Manual . | . . . Terminals 4 | . 4 . Fabricators . | . . . Repair Stations . | . . . Recycling Units . | . . . Scanalyzers . | . . . Garrison Access . | . . . Terminal Hacks 2 | . 2 . Record 2 | . 2 . Fabricator Hacks . | . . . Repair Station Hacks . | . . . Recycling Unit Hacks . | . . . Scanalyzer . | . . . Garrison Access Hacks . | . . . Unauthorized Hacks . | . . . Terminals . | . . . Fabricators . | . . . Repair Stations . | . . . Recycling Units . | . . . Scanalyzers . | . . . Garrison Access . | . . . Data Cores Recovered . | . . . Used . | . . . Hacking Detections 1 | . 1 . Full Trace Events 1 | . 1 . Feedback Events . | . . . Feedback Blocked . | . . . Robot Schematics Acquired . | . . . Robots Built . | . . . Authchips . | . . . Time . | . . . Total Robot Build Rating . | . . . Part Schematics Acquired . | . . . Parts Built . | . . . Authchips . | . . . Time . | . . . Total Part Build Rating . | . . . Parts Repaired . | . . . Time . | . . . Parts Recycled . | . . . Recycled Matter . | . . . Retrieved Matter . | . . . Retrieved Components . | . . . Parts Scanalyzed . | . . . Part Schematics Acquired . | . . . Parts Damaged . | . . . Bothacking | -11 -10 -10 ------------ Run | Yrd Mat Min Used RIF Installer . | . . . Robots Hacked . | . . . Non-combat . | . . . Combat . | . . . Robot Hacks Applied . | . . . Relay Couplers Released . | . . . Fabnet Peak Effective % . | . . . Robots Rewired . | . . . Allies Hacked . | . . . Hacks Repelled . | . . . Allies | -11 -10 -10 -------- Run | Yrd Mat Min Total Allies . | . . . Largest Group . | . . . Highest-Rated Group . | . . . Highest-Rated Ally . | . . . Total Orders . | . . . Ally Attacks . | . . . Total Damage . | . . . Kills . | . . . Allies Corrupted . | . . . Allies Melted . | . . . Intel | -11 -10 -10 ------- Run | Yrd Mat Min Active Infowar (turns) . | . . . Robot Analysis Total . | . . . Derelict Logs Recovered . | . . . Drone Launches . | . . . Drone Recoveries . | . . . Exploration | -11 -10 -10 ------------- Run | Yrd Mat Min Turns Passed 716 | 260 433 23 Spaces Moved 466 | 124 326 16 Core 67 | 17 50 . Treads . | . . . Legs 36 | . 20 16 Wheels 363 | 107 256 . Hover . | . . . Flight . | . . . Fastest Speed 50 | 50 80 120 Average Speed 87 | 75 90 120 Slowest Speed 120 | 80 120 120 Overloaded Moves . | . . . Propulsion Burnouts . | . . . Robots Hopped . | . . . Potential Cave-ins . | . . . Cave-ins Triggered . | . . . Exploration Rate (%) 26 | 11 51 17 Regions Visited 2 Branch Regions 1 Pre-discovered Areas . | . . . Known Exits Taken . | . . . Unknown Exits Taken 2 | 1 1 . Scrap Searched . | . . . Spaces Dug . | . . . Terrain Destroyed 45 | . 39 6 Melee . | . . . Projectile . | . . . AOE 45 | . 39 6 Terrain Rammed . | . . . Walls Destroyed . | . . . Machines Disabled . | . . . Actions | -11 -10 -10 --------- Run | Yrd Mat Min Total 705 | 279 408 18 Wait 144 | 138 6 . Move 464 | 123 325 16 Hop . | . . . Pick Up 26 | 7 19 . Fast Attach . | . . . Attach 15 | 5 10 . Detach 3 | . 3 . Swap 8 | 1 6 1 Drop 8 | . 8 . Fire 37 | 5 31 1 Melee . | . . . Ram . | . . . Kick . | . . . Crush . | . . . Escape Stasis . | . . . Rewire . | . . . Trap . | . . . Miscellaneous . | . . . Route ------- -11/Scrapyard -10/Materials (discovered 3 exits: [*Mat] / [*Min x2]) -10/Mines History --------- Turn | Location | Event 2 | -11/Scrapyard | Met Revision 17 40 | -11/Scrapyard | Discovered new exit (range 8) 261 | -11/Scrapyard | Entered Materials 300 | -10/Materials | Build established: Mutant 493 | -10/Materials | Discovered new exit (range 8) 581 | -10/Materials | Discovered new exit (range 7) 603 | -10/Materials | Discovered new exit (range 14) 629 | -10/Materials | Core integrity fell below 50% 632 | -10/Materials | Core integrity fell below 20% 694 | -10/Materials | Entered Mines 695 | -10/Mines | Assembled infested the area 717 | -10/Mines | Destroyed by D-53 Grenadier with Mini Grenade Launcher Last Messages --------------- Acquired Assault Rifle. The unstable cave ceiling collapses. Acquired 1 matter. The unstable cave ceiling collapses. Acquired Imp. Aluminum Leg. Acquired Lgt. EM Pulse Cannon. K-01 Serf collects debris. Acquired Autogun. Dropped Assault Rifle. Acquired Autogun. K-01 Serf collects debris. LOCATION=UNKNOWN GOAL=ESCAPE Something is scanning the area. ALERT: Infestation in the mines, dispatching Demolisher response squad. C-30 ARC bursts open, deploying its payload. D-53 Grenadier unfolds itself. Lgt. Ion Engine destroyed. U-05 Engineer lays Concrete. Map ----- +----------------------------------------------------+ | ?????????????????????????????????????????????????? | | ?????????????????????????????????????????????????? | | ?????????????????????????????????????????????????? | | ?????????????????????????????????????????????????? | | ?????????????????????????????????????????????????? | | ?????????????????????????????????????????????????? | | ?????????????????????????????????????????????????? | | ?????????????????????????????????????????????????? | | ?????????????????????????????#####???????????????? | | ?????????????????????????????# #???????? ? ??? | | ?????????????????????????????# #?????? ?? | | ?????????????????????????????# #????? ?? | | ?????????????????????????????# ##### ??? | | ?????????????????????????????# #??????? | | ?????????????????????????????# #???????? | | ?????????????????????????????# #### #???????? | | ?????????????????????????????# ##????????????? | | ??????????????????????????#### #????????????? | | ??????????????????????????# #????????????? | | ??????????????????????????# ## #????????????? | | ?????????????????#?????#### ## ##????????????? | | ????????????????## ?### ## ##?????????????? | | ??????????? t ## # ##?????????????? | | ????????????# #?????????????? | | ?????????????# #?????????????? | | ??????????????# @ d% #?????????????? | | ??????????????# d #?????????????? | | ?????????????# u ????????? | | ?????????????# ####???????? | | ??????????? ##### #??????????? | | ???????????? ####????# #??????????? | | ????????????### ## ?????????# #?????????? | | ??????????????##??## ???????????? #?????????? | | ???????????????????## ????????????? #?????????? | | ????????????????????## ????????????????????????? | | ?????????????????????## ????????????????????????? | | ??????????????????????# ????????????????????????? | | ??????????????????????# ?????????????????????????? | | ??????????????????????# ?????????????????????????? | | ??????????????????????# ?????????????????????????? | | ??????????????????????? ?????????????????????????? | | ?????????????????????????????????????????????????? | | ?????????????????????????????????????????????????? | | ?????????????????????????????????????????????????? | | ?????????????????????????????????????????????????? | | ?????????????????????????????????????????????????? | | ?????????????????????????????????????????????????? | | ?????????????????????????????????????????????????? | | ?????????????????????????????????????????????????? | | ?????????????????????????????????????????????????? | +----------------------------------------------------+ Best States ------------- Heat Dissipation 35 Energy Generation 10 Energy Capacity 250 Matter Stores 300 Matter Capacity 300 Sight Range 16 Terrain Scan Density 10 Additional Mass Support 6 Evasion (%) 55 Item Schematics ----------------- None Robot Schematics ------------------ None Fabricated ------------ Nothing Repaired ---------- Nothing Alien Tech Used ----------------- None Achievements -------------- None Challenges ------------ None Game ------ Seed RapidVisualProcessor Manual? 0 Play Time 00:19:23 Cumulative 1.4 hours Start 2025.07.20 @ 20:43:20 End 2025.07.20 @ 21:05:32 Sessions 1 Manual Loads 0 Difficulty Rogue Special Mode None Game No. 2 Rogue 2 Adventurer 0 Explorer 0 Win Type - Total 0 Types 0/0/0/0/0/0/0/0/0/0 Lore% 5 Gallery% 2 Achievement% 2 Wizard Run 0 Options --------- Layout 1 ASCII 0 Keyboard 0 Movement Mouse Keybinds 0 Fullscreen 1 Font 24/Smallcaps Map View 50x35 Zoom Use 0% Tactical HUD 0 Map Filters NONE Filters NONE Steam 1 RUN: 3f0cc3ab-b7b5-442c-b125-867834903b96